Cogmind - Beta 14 @@@ ROGUE MODE // 2024.08.20 @ 18:58:43 Player: 0Z-4NL Result: Destroyed by G-47 Trooper with Particle Gun Performance ------------- Evolutions (2) 1000 Regions Visited (4) 800 Robots Destroyed (76) 380 Value Destroyed (2471) 2471 Prototype IDs (5) 100 Alien Tech Used (0) 0 Bonus (485) 485 TOTAL SCORE: 5236 Bonus ------- High Alert Combat Kills 293 Follower Combat Kills 192 Cogmind --------- Core Integrity 0/550 Matter 134/300 Energy 99/100 System Corruption 5% Temperature Hot (202) Movement Treading (385) Ox3 Location -8/Materials Parts ------- > --- POWER (1) -------- (None) > --- PROPULSION (4) --- Advanced Treads > --- UTILITY (3) ------ High-capacity Storage Unit Heavy Armor Plating > --- WEAPON (3) ------- Flak Cannon Flak Cannon > --- INVENTORY (20) --- Improved Ion Engine Improved Heat Sink Cooling System Experimental Sensor Array Terrain Scanner Hacking Suite Heavy Particle Cannon Heavy Particle Cannon Heavy Particle Cannon Heavy Particle Cannon Heavy Particle Cannon Enhanced Autogun Gauss Cannon Mini Grenade Launcher Mini Grenade Launcher Makeshift Hammer Peak State ------------ > --- POWER ------------ Light Nuclear Core > --- PROPULSION ------- Light Treads Improved Aluminum Leg Titanium Leg Armored Wheel > --- UTILITY ---------- Cooling System High-capacity Storage Unit Improved Light Armor Plating > --- WEAPON ----------- Heavy Particle Cannon Gauss Cannon Gauss Cannon > --- INVENTORY -------- Improved Ion Engine Advanced Treads Improved Heat Sink Compact Matter Pod Experimental Sensor Array Heavy Armor Plating Heavy Particle Cannon Heavy Particle Cannon Heavy Particle Cannon Heavy Particle Cannon Heavy Particle Cannon Minigun Enhanced Autogun Enhanced Autogun Enhanced Autogun Gauss Cannon Advanced EMP Blaster Advanced EMP Blaster Makeshift Hammer [Rating: 35] Favorites ----------- Power Light Nuclear Core Engine Light Ion Engine Power Core Light Nuclear Core Propulsion Light Treads Treads Light Treads Leg Improved Aluminum Leg Wheel Compact Wheel Utility High-capacity Storage Unit Device Cooling System Storage High-capacity Storage Unit Processor Advanced Targeting Computer Hackware Hacking Suite Protection Hardened Medium Armor Plating Weapon Beam Cannon Energy Gun EM Pulse Gun Energy Cannon Beam Cannon Ballistic Gun Subdweller Machine Gun Ballistic Cannon Gauss Cannon Launcher Grenade Launcher Impact Weapon Makeshift Hammer Slashing Weapon Mining Claw Build | -11 -10 -10 -10 -8 ------- Run | Yrd Mat Min Sub Mat Slots Evolved 4 | . . . . 4 Power . | . . . . . Propulsion 2 | . . . . 2 Utility 1 | . . . . 1 Weapon 1 | . . . . 1 Parts Attached 112 | . 20 6 34 52 Power 8 | . 1 . 4 3 Engine 5 | . . . 4 1 Core 3 | . 1 . . 2 Reactor . | . . . . . Propulsion 25 | . 4 . 8 13 Treads 12 | . 3 . 5 4 Leg 5 | . . . . 5 Wheel 8 | . 1 . 3 4 Hover . | . . . . . Flight . | . . . . . Utility 24 | . 5 2 6 11 Device 9 | . 3 1 1 4 Storage 2 | . 1 . . 1 Processor 1 | . . . . 1 Hackware 1 | . . . . 1 Protection 11 | . 1 1 5 4 Artifact . | . . . . . Weapon 55 | . 10 4 16 25 Energy Gun 5 | . 1 . 2 2 Energy Cannon 17 | . 5 1 5 6 Ballistic Gun 8 | . . . 4 4 Ballistic Cannon 10 | . . . 1 9 Launcher 10 | . 3 1 2 4 Special Weapon . | . . . . . Impact Weapon 3 | . . 1 2 . Slashing Weapon 2 | . 1 1 . . Piercing Weapon . | . . . . . Special Melee Weapon . | . . . . . Unidentified Prototypes 4 | . . 1 . 3 Corrupted Parts 1 | . . . . 1 System Corruption 4 | . . . . 4 Parts Lost 18 | . 1 . 3 14 Power 2 | . . . . 2 Propulsion 6 | . . . 1 5 Utility 2 | . . . 1 1 Weapon 8 | . 1 . 1 6 Highest Loss Streak 9 | . 1 . 3 9 To Critical Strikes . | . . . . . Average Slot Usage (%) 92 | . 99 99 79 95 Engine 3 | . 7 . 4 1 Core 6 | . 6 14 . 6 Treads 11 | . 12 14 14 8 Leg 6 | . 3 . . 14 Wheel 12 | . 12 14 13 10 Device 5 | . 13 . . 7 Storage 9 | . 14 14 3 8 Protection 9 | . . 14 13 9 Energy Gun 1 | . 3 . . 2 Energy Cannon 14 | . 18 20 15 10 Ballistic Gun 4 | . 4 . 10 3 Ballistic Cannon 3 | . . . . 9 Peak Build Rating 35 | 6 12 20 18 35 Average Rating 18 | 6 8 13 13 29 On Entrance 10 | 6 6 12 14 12 Naked Turns . | . . . . . Heaviest Build 76 | 12 58 58 68 76 Greatest Support 30 | 20 20 16 20 30 Greatest Overweight (x) 7 | . 3 3 4 7 Average Overweight (x) 2 | . 1 3 1 4 Largest Inventory Capacity 20 | 8 20 20 20 20 Average Capacity 15 | 8 16 20 9 19 Most Carried 20 | 6 20 20 20 20 Average Carried 14 | 6 12 19 8 17 Final Capacity 20 | 8 20 20 5 20 Final Carried 20 | 6 20 20 5 16 Class Distribution -------------------- 44% | Mutant 22% | Tank 20% | Subdweller-Mutant 12% | Scavenger-Tank Dominant Class ---------------- Mutant | -10/Materials Mutant | -10/Mines Subdweller-Mutant | -10/Subcaves Tank | -8/Materials Resources | -11 -10 -10 -10 -8 ----------- Run | Yrd Mat Min Sub Mat Matter Collected 2465 | 206 526 80 365 1288 Remotely . | . . . . . Salvage Created 2643 | 53 488 23 227 1852 Parts 150 | 2 26 3 11 108 Haulers Intercepted 7 | . 2 . . 5 Recyclers Shooed 1 | . . . . 1 Parts Field Recycled . | . . . . . Retrieved Matter . | . . . . . Parts Self-Destructed 9 | . . . 9 . Prevented . | . . . . . Kills | -11 -10 -10 -10 -8 ------- Run | Yrd Mat Min Sub Mat Combat Hostiles Destroyed 61 | . 11 . 6 44 Guns 12 | . 3 . 1 8 Cannons 43 | . 5 . 3 35 AOE 6 | . 3 . 2 1 Classes Destroyed 14 | 1 3 1 1 8 Builder 3 | . . . . 3 Tunneler 1 | . . 1 . . Hauler 7 | . 2 . . 5 Recycler 2 | 1 . . . 1 Operator 1 | . . . . 1 Watcher 1 | . . . . 1 Swarmer 14 | . 3 . . 11 Grunt 27 | . 8 . . 19 Duelist 1 | . . . . 1 Sentry 8 | . . . . 8 Specialist 2 | . . . . 2 Hunter 2 | . . . . 2 Heavy 1 | . . . . 1 Subdweller 6 | . . . 6 . Best Kill Streak 6 | 1 3 1 2 6 Combat Bots Only 5 | . 3 . 2 5 Max Kills in Single Turn 2 | 1 2 1 2 2 Gunslinging . | . . . . . Exploded 2 | . 2 . 2 1 Melee . | . . . . . Uniques/NPCs Destroyed . | . . . . . Combat | -11 -10 -10 -10 -8 -------- Run | Yrd Mat Min Sub Mat Hostile Shots Fired 452 | . 46 7 37 362 Missed 127 | . 14 4 5 104 Damage Taken 5206 | . 385 43 963 3815 Core 721 | . 46 . 109 566 Absorbed by Shields . | . . . . . Core Remaining (%) 69 | 100 . . 38 . Volleys Fired 202 | 2 40 1 16 143 Largest 3 | 2 2 2 2 3 Hottest 211 | 60 120 120 160 211 Shots Fired 428 | 4 74 2 29 319 Gun 120 | 4 35 . 10 71 Cannon 299 | . 34 2 17 246 Launcher 9 | . 5 . 2 2 Special . | . . . . . Kinetic 212 | 2 17 . 10 183 Thermal 187 | . 34 2 17 134 Explosive 7 | . 5 . 2 . Electromagnetic 22 | 2 18 . . 2 Robot Hit Streak 11 | 2 11 6 9 10 Robot Miss Streak 5 | 1 3 . 2 5 Penetration Max . | . . . . . Secondary Targets . | . . . . . Shots Hit Robots 254 | 2 49 2 21 180 Core Hits 132 | 2 20 1 12 97 Critical Kills . | . . . . . Critical Parts Destroyed 1 | . . . . 1 Critical Strikes 7 | . . . . 7 Burn 1 | . . . . 1 Destroy 1 | . . . . 1 Blast 5 | . . . . 5 Melee Attacks 13 | . 6 3 4 . Impact 4 | . . . 4 . Slashing 9 | . 6 3 . . Piercing . | . . . . . Sneak Attacks 1 | . . 1 . . Combat Hostiles . | . . . . . Follow-up Attacks . | . . . . . Damage Inflicted 6405 | 26 914 67 913 4485 Guns 1050 | 26 354 . 126 544 Cannons 4419 | . 422 18 310 3669 Explosions 887 | . 138 . 477 272 Melee 49 | . . 49 . . Ramming . | . . . . . Kinetic 2860 | 13 175 . 126 2546 Thermal 2500 | . 422 18 310 1750 Explosive 653 | . 138 . 477 38 Electromagnetic 343 | 13 179 . . 151 Impact . | . . . . . Slashing 49 | . . 49 . . Piercing . | . . . . . Highest Corruption 5 | . . . . 5 Average Corruption 4 | . . . . 4 Corruption Purged . | . . . . . Corruption Blocked . | . . . . . Effects 3 | . . . . 3 Message Errors 2 | . . . . 2 Matter Fused 1 | . . . . 1 Overload Shots . | . . . . . Overflow Damage 68 | . 13 9 . 46 Projectiles 38 | . . . . 38 Explosions 21 | . 13 . . 8 Melee 9 | . . 9 . . Knockbacks 20 | . . . . 20 Impact . | . . . . . Kinetic 17 | . . . . 17 Secondary 3 | . . . . 3 Self-Inflicted Damage 155 | . . . 77 78 Shots 4 | . . . 2 2 Rammed . | . . . . . Targets Rammed . | . . . . . Kicked . | . . . . . Crushed . | . . . . . Highest Temperature 402 | . 210 75 66 402 Average Temperature 82 | . 58 42 24 91 Received Heat Transfer 1281 | . 207 6 141 927 Effects 5 | . 3 . . 2 Energy Bleed 1 | . . . . 1 Interference 3 | . 3 . . . Damage (minor) 1 | . . . . 1 Siege Activations . | . . . . . Robots Corrupted . | . . . . . Combat Hostiles . | . . . . . Parts Fried . | . . . . . Impact Corruptions . | . . . . . Robots Melted . | . . . . . Combat Hostiles . | . . . . . Parts Melted 3 | . 1 . . 2 Heat Transferred 3948 | . 888 37 407 2616 Parts Sabotaged . | . . . . . Parts Stolen . | . . . . . Parts Stripped . | . . . . . Power Chain Reactions 1 | . . . . 1 Alert | -11 -10 -10 -10 -8 ------- Run | Yrd Mat Min Sub Mat Peak Influence 807 | 5 194 142 . 807 Initial . | . . . . . Average 226 | 3 61 30 . 406 Maximum Alert Level 3 | . . . . 3 Low Security (%) 55 | 100 100 100 . 13 Level 1 23 | . . . . 46 Level 2 12 | . . . . 24 Level 3 7 | . . . . 15 Level 4 . | . . . . . Level 5 . | . . . . . High Security . | . . . . . Max Security . | . . . . . Squads Dispatched 10 | . 1 . . 9 Investigation . | . . . . . Extermination . | . . . . . Reinforcement 9 | . 1 . . 8 Assault . | . . . . . Garrison 1 | . . . . 1 Intercept . | . . . . . Searches Triggered . | . . . . . Construction Impeded 2 | . . . . 2 Haulers Reinforced . | . . . . . Active Scanning Responses . | . . . . . Cargo Convoy Interrupts . | . . . . . Stealth | -11 -10 -10 -10 -8 --------- Run | Yrd Mat Min Sub Mat Distress Signals 7 | . 2 . . 5 Communications Jammed . | . . . . . Distress Signals . | . . . . . Times Spotted 120 | . 22 9 17 72 Peak Tracking Total 9 | . 5 3 9 6 Tactical Retreats 9 | . 3 2 . 4 Traps | -11 -10 -10 -10 -8 ------- Run | Yrd Mat Min Sub Mat Traps Triggered 3 | . . 1 2 . Indirectly . | . . . . . Trap Hack Attempts . | . . . . . Triggered . | . . . . . Disarmed . | . . . . . Reprogrammed . | . . . . . Reused 1 | . . . . 1 Traps Extracted . | . . . . . Installed 3 | . . . 2 1 Triggered 1 | . . . . 1 Most Traps Carried 1 | . . . 1 1 Machines | -11 -10 -10 -10 -8 ---------- Run | Yrd Mat Min Sub Mat Machines Disabled 10 | . 3 . . 7 Max in Single Turn 2 | . 2 . . 1 Machines Repaired . | . . . . . Machines Dismantled . | . . . . . Machines Sabotaged . | . . . . . Overloaded Fab Kills . | . . . . . Hacking | -11 -10 -10 -10 -8 --------- Run | Yrd Mat Min Sub Mat Machines Accessed 21 | . 8 2 1 10 Terminals 16 | . 8 1 . 7 Fabricators . | . . . . . Repair Stations 2 | . . . . 2 Recycling Units . | . . . . . Scanalyzers 1 | . . . . 1 Garrison Access . | . . . . . Total Hacks 50 | . 23 4 4 19 Successful 19 | . 7 2 4 6 Failed 31 | . 16 2 . 13 Catastrophic 5 | . 3 . . 2 Database Lockouts . | . . . . . Manual 13 | . 2 3 . 8 Terminals 41 | . 23 3 . 15 Fabricators . | . . . . . Repair Stations 2 | . . . . 2 Recycling Units . | . . . . . Scanalyzers 2 | . . . . 2 Garrison Access . | . . . . . Terminal Hacks 16 | . 6 2 4 4 Record 4 | . . . 4 . Robot Analysis 2 | . 1 1 . . Open Door 1 | . . 1 . . Level Access Points 1 | . 1 . . . Alert Level 3 | . 1 . . 2 Unreport Threat 2 | . 1 . . 1 Locate Traps 3 | . 2 . . 1 Fabricator Hacks . | . . . . . Repair Station Hacks 1 | . . . . 1 Scan Component 1 | . . . . 1 Recycling Unit Hacks . | . . . . . Scanalyzer 1 | . . . . 1 Insert Component 1 | . . . . 1 Garrison Access Hacks . | . . . . . Unauthorized Hacks 1 | . 1 . . . Terminals 1 | . 1 . . . Botnet 1 | . 1 . . . Fabricators . | . . . . . Repair Stations . | . . . . . Recycling Units . | . . . . . Scanalyzers . | . . . . . Garrison Access . | . . . . . Data Cores Recovered . | . . . . . Used . | . . . . . Hacking Detections 18 | . 7 1 . 10 Full Trace Events . | . . . . . Feedback Events . | . . . . . Feedback Blocked . | . . . . . Robot Schematics Acquired . | . . . . . Robots Built . | . . . . . Authchips . | . . . . . Time . | . . . . . Total Robot Build Rating . | . . . . . Part Schematics Acquired . | . . . . . Parts Built . | . . . . . Authchips . | . . . . . Time . | . . . . . Total Part Build Rating . | . . . . . Parts Repaired . | . . . . . Time . | . . . . . Parts Recycled . | . . . . . Recycled Matter . | . . . . . Retrieved Matter . | . . . . . Retrieved Components . | . . . . . Parts Scanalyzed 1 | . . . . 1 Part Schematics Acquired . | . . . . . Parts Damaged . | . . . . . Bothacking | -11 -10 -10 -10 -8 ------------ Run | Yrd Mat Min Sub Mat Used RIF Installer . | . . . . . Robots Hacked . | . . . . . Non-combat . | . . . . . Combat . | . . . . . Robot Hacks Applied . | . . . . . Relay Couplers Released . | . . . . . Fabnet Peak Effective % . | . . . . . Robots Rewired . | . . . . . Allies Hacked . | . . . . . Hacks Repelled . | . . . . . Allies | -11 -10 -10 -10 -8 -------- Run | Yrd Mat Min Sub Mat Total Allies 3 | . . 3 . . Largest Group 3 | . . 3 1 . Highest-Rated Group 40 | . . 40 16 . Highest-Rated Ally 16 | . . 16 16 . Total Orders . | . . . . . Ally Attacks 53 | . . 38 15 . Total Damage 563 | . . 332 231 . Kills 11 | . . 8 3 . Allies Corrupted . | . . . . . Allies Melted . | . . . . . Intel | -11 -10 -10 -10 -8 ------- Run | Yrd Mat Min Sub Mat Robot Analysis Total 2 | . 1 1 . . Derelict Logs Recovered 5 | . . 2 3 . Drone Launches . | . . . . . Drone Recoveries . | . . . . . Exploration | -11 -10 -10 -10 -8 ------------- Run | Yrd Mat Min Sub Mat Turns Passed 7129 | 498 1244 995 1553 2839 Spaces Moved 3493 | 194 760 637 685 1217 Core . | . . . . . Treads 468 | . . . 437 31 Legs 390 | 194 89 . . 107 Wheels 2635 | . 671 637 248 1079 Hover . | . . . . . Flight . | . . . . . Fastest Speed 100 | 120 100 145 120 119 Average Speed 161 | 120 131 145 203 173 Slowest Speed 265 | 120 145 145 240 265 Overloaded Moves . | . . . . . Propulsion Burnouts . | . . . . . Robots Hopped . | . . . . . Cave-ins Triggered . | . . . . . Exploration Rate (%) 68 | 20 99 99 33 89 Regions Visited 4 Branch Regions 2 Pre-discovered Areas 2 | . . 1 1 . Known Exits Taken 1 | . . 1 . . Unknown Exits Taken 3 | 1 1 . 1 . Scrap Searched 13 | . . 1 12 . Spaces Dug 18 | . 4 . . 14 Terrain Destroyed 155 | . 30 . 19 106 Melee 4 | . 4 . . . Projectile 87 | . . . . 87 AOE 64 | . 26 . 19 19 Terrain Rammed . | . . . . . Walls Destroyed . | . . . . . Machines Disabled . | . . . . . Actions | -11 -10 -10 -10 -8 --------- Run | Yrd Mat Min Sub Mat Total 4588 | 455 916 702 822 1693 Wait 573 | 260 61 45 18 189 Move 3489 | 193 759 636 684 1217 Hop . | . . . . . Pick Up 80 | . 18 4 13 45 Fast Attach 39 | . 6 4 11 18 Attach 22 | . 1 . 7 14 Detach 19 | . 3 . 9 7 Swap 52 | . 13 2 16 21 Drop 95 | . 9 7 41 38 Fire 202 | 2 40 1 16 143 Melee 13 | . 6 3 4 . Ram . | . . . . . Kick . | . . . . . Crush . | . . . . . Escape Stasis . | . . . . . Rewire . | . . . . . Trap 3 | . . . 2 1 Miscellaneous 1 | . . . 1 . Route ------- -11/Scrapyard -10/Materials (discovered 6 exits: *Mat x3 / *Min x2 / *Sub) -10/Mines (discovered 3 exits: *Mat x2 / *Sub) -10/Subcaves -8/Materials (discovered 2 exits: *Fac x2) History --------- Turn | Location | Event 1 | -11/Scrapyard | Discovered new exit (range 1) 499 | -11/Scrapyard | Entered Materials 500 | -10/Materials | Build established: Mutant 689 | -10/Materials | Discovered new exit (range 16) 703 | -10/Materials | Discovered new exit (range 16) 1061 | -10/Materials | Identified exit to Materials 1248 | -10/Materials | Discovered new exit (range 9) 1395 | -10/Materials | Discovered new exit (range 8) 1743 | -10/Materials | Entered Mines 1753 | -10/Mines | Met a Derelict bent on vengeance 1758 | -10/Mines | Discovered exit to Materials (range 13) 1759 | -10/Mines | Discovered exit to Materials (range 11) 1817 | -10/Mines | Met a Derelict who couldn't figure out how to use a Trap Extractor 1892 | -10/Mines | Found a damaged Exp. Sensor Array with a note attached 1896 | -10/Mines | Found Prototype Device 1896 | -10/Mines | Identified Exp. Sensor Array 1935 | -10/Mines | Learned location of Storage (-9) 2002 | -10/Mines | Assisted by bots powering up and referring to "LRC-V3" 2101 | -10/Mines | A weapon hastily lodged in a ceiling crevice suddenly fell to the ground 2397 | -10/Mines | Identified exit to Subcaves 2404 | -10/Mines | Learned Materials security intel 2738 | -10/Mines | Entered Subcaves 2738 | -10/Subcaves | Accompanied by 1 ally 2740 | -10/Subcaves | Shifting Twisted Machinery released Sub. Beam Cannon 2740 | -10/Subcaves | Shifting Twisted Machinery released Piercing Trap 2743 | -10/Subcaves | Learned location of Zion (-6) 2746 | -10/Subcaves | Ambushed by Subdwellers from Twisted Machinery 2750 | -10/Subcaves | Ambushed by Subdweller buried in earth 2750 | -10/Subcaves | Ambushed by Subdweller buried in earth 2771 | -10/Subcaves | Learned Materials emergency access door positions 2958 | -10/Subcaves | Learned location of 1 exit from Materials 2980 | -10/Subcaves | Disturbed a concealed Subdweller 3086 | -10/Subcaves | Ambushed by swarm of Subdwellers 3086 | -10/Subcaves | Ambushed by Subdwellers from Twisted Machinery 3090 | -10/Subcaves | Ambushed by Subdwellers from Twisted Machinery 3090 | -10/Subcaves | Ambushed by Subdwellers from Twisted Machinery 3095 | -10/Subcaves | Core integrity fell below 50% 3129 | -10/Subcaves | Lost 3 parts (1n1u1w) 3145 | -10/Subcaves | Lost 3 allies 3390 | -10/Subcaves | Build established: Subdweller-Mutant 3434 | -10/Subcaves | Visited Clippyterm 3442 | -10/Subcaves | Learned Research security intel 3614 | -10/Subcaves | Discovered new exit (range 4) 4048 | -10/Subcaves | Shifting Twisted Machinery released Sub. Optics 4291 | -10/Subcaves | Entered Materials 4291 | -8/Materials | Evolved 4 slots: Propulsion x2, Utility x1, Weapon x1 4292 | -8/Materials | Identified exit to Factory 5407 | -8/Materials | Discovered exit to Factory (range 15) 5409 | -8/Materials | Build established: Scavenger-Tank 6110 | -8/Materials | Build established: Tank 7058 | -8/Materials | Garrison activated, responded to threat 7061 | -8/Materials | Core integrity fell below 50% 7072 | -8/Materials | Core integrity fell below 20% 7130 | -8/Materials | Destroyed by G-47 Trooper with Particle Gun Last Messages --------------- 07099_ X-57 Shotgunner destroyed. 07101_ X-57 Shotgunner IFF system glitched. 07101_ Gauss Cannon destroyed. 07101_ Slug penetrates Wall. 07103_ X-57 Shotgunner destroyed. 07111_ U-05 Engineer builds a Wall. 07112_ Penetrated by Slug. 07112_ G-47 Trooper destroyed. 07112_ U-05 Engineer destroyed. 07115_ Penetrated by Slug. 07115_ Y-45 Defender destroyed. 07118_ Penetrated by Slug. 07122_ M/GZMR,MDBE 5B,HV44X|U 07122_ U-05 Engineer destroyed. 07124_ Penetrated by Slug. 07124_ Acquired Terrain Scanner. 07125_ Dropped Com. Matter Pod. 07126_ Extracted 150 matter. 07126_ H-55 Commando destroyed. 07128_ Adv. EMP Blaster destroyed. Map ----- +----------------------------------------------------+ | ??????????????????????????????????? | | ??????????????????????????????????? | | ??????????????????????????????????? | | ??????????????????????????????????? | | ??????????????????????????????????? | | ??????????????????????????????????? | | ??????????????????????????????????? | | ??????????????????????????????????? | | ??????????????????????????????##### | | ??????##??????????????????????# | | ????### ######????????????????# | | ???? #?????? ? ??????# | | ????? #????? ???????# """ | | ?????? #???? ????????# """ | | ??????? #??? !! ?????????# """ | | ???????[ #??# !???????????# | | ???????? ?? / ????????????# | | ????????? ? #?????????????##### | | ?????????#""## ##????????????????? | | ???????###" % #????????????????? | | ???????# ! # """????????????? | | ???????#%! % / """????????????? | | ???????#gg## """????????????? | | ????####%=######## ????????? | | # #[%%%!##??#?? ????????? | | ?# =%@= !#???????? ?????????? | | ??### # |! !#???????????????????? | | ????#### !#???????????????????? | | ???????# !#???????????????????? | | ???????# !##???????????????????? | | ???????# ####??????????##########? | | ???????# #?????????????# """"" #? | | ?####### #?????????????# ""T"" #? | | # # #?????????????# #? | | #! + #?????????????# [ #? | | # # #?????????????# #? | | # """" # ##?###????????# """"" ## | | # """"?# #### ######???# """"" + | | ? """"?# ## #???# """"" ## | | ??###??# ## #???# #? | | ???????# ## % #########+####? | | ???????# / [ # #### | | ?#######+### !** # | | ?# ! # !** =# #### | | ?# # !* %+ ^ """ #??? | | ?# ! # # % """"" #??? | | ?# # [ %# """" #??? | | ?# """ """ ########## ^ """" #??? | | ?# """ """ ## ???? ^ "" #??? | | ?# """ """ ##????? #??? | +----------------------------------------------------+ Best States ------------- Heat Dissipation 53 Energy Generation 15 Energy Capacity 265 Matter Stores 300 Matter Capacity 300 Sight Range 16 Terrain Scan Density 10 Armor Coverage 800 Evasion (%) 55 Targeting Accuracy 8 Recoil Reduction 2 Offensive Hacking 10 Item Schematics ----------------- None Robot Schematics ------------------ None Fabricated ------------ Nothing Alien Tech Used ----------------- None Achievements -------------- None Challenges ------------ None Game ------ Seed ShockBattleRailgun Manual? 0 Play Time 01:32:52 Cumulative 518.5 hours Start 2024.08.20 @ 02:18:03 End 2024.08.20 @ 18:58:43 Sessions 5 Manual Loads 0 Difficulty Rogue Special Mode None Game No. 122 Rogue 82 Adventurer 4 Explorer 36 Win Type - Total 38 Types 18/6/4/2/2/3/2/0/1 Lore% 54 Gallery% 81 Achievement% 89 Wizard Run 0 Options --------- Layout 1 ASCII 0 Keyboard 1 Movement Vi Keybinds 0 Fullscreen 1 Font 24/Proggy Map View 76x35 Zoom Use 0% Tactical HUD 1 Map Filters NONE Filters NONE Steam 1 RUN: 99cc835a-fd22-486c-b89a-f66d3b5499d9